Cogmind - Beta 13 @@@ ROGUE MODE // 2024.03.31 @ 18:37:15 Player: AndK Result: Destroyed by YI-UF0 with YI-UF0's Doublenader Performance ------------- Evolutions (0) 0 Regions Visited (2) 400 Robots Destroyed (11) 55 Value Destroyed (357) 357 Prototype IDs (0) 0 Alien Tech Used (0) 0 Bonus (0) 0 TOTAL SCORE: 812 Bonus ------- None Cogmind --------- Core Integrity 0/250 Matter 231/300 Energy 6/100 System Corruption 4% Temperature Cool (0) Movement Core (450) Ox8 Location -10/Mines Parts ------- > --- POWER (1) -------- (None) > --- PROPULSION (2) --- (None) > --- UTILITY (2) ------ Large Storage Unit ECM Suite > --- WEAPON (2) ------- Assault Rifle Light Assault Rifle > --- INVENTORY (15) --- Ion Engine Medium Storage Unit Signal Interpreter Signal Interpreter Light Assault Rifle Peak State ------------ > --- POWER ------------ Light Ion Engine > --- PROPULSION ------- Wheel Wheel > --- UTILITY ---------- Medium Storage Unit ECM Suite > --- WEAPON ----------- Light Assault Rifle Grenade Launcher > --- INVENTORY -------- Ion Engine Aluminum Leg Aluminum Leg Medium Storage Unit Signal Interpreter Signal Interpreter Assault Rifle Light Assault Rifle Grenade Launcher Grenade Launcher [Rating: 8] Favorites ----------- Power Light Ion Engine Engine Light Ion Engine Propulsion Wheel Leg Aluminum Leg Wheel Wheel Utility ECM Suite Device ECM Suite Storage Large Storage Unit Weapon Grenade Launcher Ballistic Gun Light Assault Rifle Launcher Grenade Launcher Special Melee Weapon Datajack Build | -11 -10 -10 ------- Run | Yrd Mat Min Slots Evolved . | . . . Power . | . . . Propulsion . | . . . Utility . | . . . Weapon . | . . . Parts Attached 16 | 5 7 4 Power 1 | 1 . . Engine 1 | 1 . . Core . | . . . Reactor . | . . . Propulsion 4 | 2 2 . Treads . | . . . Leg 2 | . 2 . Wheel 2 | 2 . . Hover . | . . . Flight . | . . . Utility 3 | . 3 . Device 1 | . 1 . Storage 2 | . 2 . Processor . | . . . Hackware . | . . . Protection . | . . . Artifact . | . . . Weapon 8 | 2 2 4 Energy Gun . | . . . Energy Cannon . | . . . Ballistic Gun 4 | 2 . 2 Ballistic Cannon . | . . . Launcher 3 | . 2 1 Special Weapon . | . . . Impact Weapon . | . . . Slashing Weapon . | . . . Piercing Weapon . | . . . Special Melee Weapon 1 | . . 1 Unidentified Prototypes . | . . . Parts Lost 9 | . 2 7 Power 1 | . . 1 Propulsion 4 | . 2 2 Utility . | . . . Weapon 4 | . . 4 Highest Loss Streak 7 | . 2 7 To Critical Strikes . | . . . Average Slot Usage (%) 97 | . 98 95 Engine 13 | . 14 12 Leg 10 | . 5 26 Wheel 17 | . 22 . Device 12 | . 12 14 Storage 13 | . 13 14 Ballistic Gun 6 | . 7 . Launcher 21 | . 20 25 Naked Turns . | . . . Heaviest Build 31 | 5 31 31 Greatest Support 20 | 20 20 20 Greatest Overweight (x) 2 | . 1 2 Average Overweight (x) . | . . 1 Largest Inventory Capacity 15 | 5 15 15 Average Capacity 11 | 5 11 15 Most Carried 10 | 5 10 9 Average Carried 7 | 2 8 8 Final Capacity 15 | 5 15 15 Final Carried 8 | 4 8 5 Class Distribution -------------------- 100% | Mutant Dominant Class ---------------- Mutant | -10/Materials Mutant | -10/Mines Resources | -11 -10 -10 ----------- Run | Yrd Mat Min Matter Collected 495 | 256 196 43 Remotely . | . . . Salvage Created 252 | 33 219 . Parts 20 | 2 18 . Haulers Intercepted . | . . . Recyclers Shooed . | . . . Parts Field Recycled . | . . . Retrieved Matter . | . . . Parts Self-Destructed . | . . . Prevented . | . . . Kills | -11 -10 -10 ------- Run | Yrd Mat Min Combat Hostiles Destroyed 9 | 1 8 . Guns 2 | 1 1 . AOE 7 | . 7 . Classes Destroyed 3 | 1 2 . Builder 1 | . 1 . Watcher 1 | . 1 . Grunt 9 | 1 8 . Best Kill Streak 4 | 1 4 . Combat Bots Only 4 | 1 4 . Max Kills in Single Turn 2 | 1 2 . Gunslinging . | . . . Exploded 2 | . 2 . Melee . | . . . Uniques/NPCs Destroyed . | . . . Combat | -11 -10 -10 -------- Run | Yrd Mat Min Hostile Shots Fired 39 | 2 9 28 Missed 10 | . 2 8 Damage Taken 916 | 23 224 669 Core 253 | 12 11 230 Absorbed by Shields . | . . . Core Remaining (%) 95 | 95 . . Volleys Fired 27 | 3 17 7 Largest 2 | 2 2 2 Hottest 60 | 40 60 60 Shots Fired 48 | 6 32 10 Gun 28 | 6 16 6 Cannon . | . . . Launcher 20 | . 16 4 Special . | . . . Kinetic 28 | 6 16 6 Thermal . | . . . Explosive 20 | . 16 4 Electromagnetic . | . . . Robot Hit Streak 6 | 4 6 3 Robot Miss Streak 3 | 1 2 3 Penetration Max . | . . . Secondary Targets . | . . . Shots Hit Robots 24 | 5 14 5 Core Hits 21 | 3 17 1 Critical Kills . | . . . Critical Parts Destroyed . | . . . Critical Strikes . | . . . Melee Attacks . | . . . Impact . | . . . Slashing . | . . . Piercing . | . . . Sneak Attacks . | . . . Combat Hostiles . | . . . Follow-up Attacks . | . . . Damage Inflicted 689 | 41 591 57 Guns 130 | 41 61 28 Cannons . | . . . Explosions 559 | . 530 29 Melee . | . . . Ramming . | . . . Kinetic 130 | 41 61 28 Thermal . | . . . Explosive 559 | . 530 29 Electromagnetic . | . . . Impact . | . . . Slashing . | . . . Piercing . | . . . Highest Corruption 4 | . 4 4 Average Corruption 3 | . 3 4 Corruption Purged . | . . . Corruption Blocked . | . . . Effects 8 | . 5 3 Message Errors 1 | . . 1 Matter Fused 2 | . 1 1 Heat Flow Errors 1 | . . 1 Data Loss (minor) 2 | . 2 . Data Loss (major) 1 | . 1 . Misfires 1 | . 1 . Overload Shots . | . . . Overflow Damage 35 | . 35 . Projectiles . | . . . Explosions 35 | . 35 . Melee . | . . . Knockbacks . | . . . Impact . | . . . Kinetic . | . . . Secondary . | . . . Self-Inflicted Damage 151 | . 151 . Shots 2 | . 2 . Rammed . | . . . Targets Rammed . | . . . Kicked . | . . . Crushed . | . . . Highest Temperature 176 | 6 32 176 Average Temperature 40 | 6 10 121 Received Heat Transfer 54 | 12 42 . Siege Activations . | . . . Robots Corrupted . | . . . Combat Hostiles . | . . . Parts Fried . | . . . Impact Corruptions . | . . . Robots Melted . | . . . Combat Hostiles . | . . . Parts Melted . | . . . Heat Transferred . | . . . Parts Sabotaged . | . . . Parts Stolen . | . . . Parts Stripped . | . . . Power Chain Reactions . | . . . Alert | -11 -10 -10 ------- Run | Yrd Mat Min Peak Influence 309 | 20 309 95 Initial 95 | . 13 95 Average 145 | 2 179 86 Maximum Alert Level 1 | . 1 . Low Security (%) 72 | 100 61 100 Level 1 27 | . 38 . Level 2 . | . . . Level 3 . | . . . Level 4 . | . . . Level 5 . | . . . High Security . | . . . Max Security . | . . . Squads Dispatched 4 | . 4 . Investigation 3 | . 3 . Extermination . | . . . Reinforcement 1 | . 1 . Assault . | . . . Garrison . | . . . Intercept . | . . . Searches Triggered . | . . . Construction Impeded . | . . . Haulers Reinforced . | . . . Active Scanning Responses . | . . . Cargo Convoy Interrupts . | . . . Stealth | -11 -10 -10 --------- Run | Yrd Mat Min Distress Signals 1 | . 1 . Communications Jammed . | . . . Distress Signals . | . . . Times Spotted 9 | 1 7 1 Peak Tracking Total 2 | 1 2 1 Tactical Retreats . | . . . Traps | -11 -10 -10 ------- Run | Yrd Mat Min Traps Triggered 2 | . 2 . Indirectly . | . . . Trap Hack Attempts . | . . . Triggered . | . . . Disarmed . | . . . Reprogrammed 3 | . 3 . Reused . | . . . Traps Extracted . | . . . Installed . | . . . Triggered . | . . . Machines | -11 -10 -10 ---------- Run | Yrd Mat Min Machines Disabled 3 | . 3 . Max in Single Turn 2 | . 2 . Machines Repaired . | . . . Machines Dismantled . | . . . Machines Sabotaged . | . . . Overloaded Fab Kills . | . . . Hacking | -11 -10 -10 --------- Run | Yrd Mat Min Machines Accessed 8 | . 8 . Terminals 7 | . 7 . Fabricators . | . . . Repair Stations 1 | . 1 . Recycling Units . | . . . Scanalyzers . | . . . Garrison Access . | . . . Total Hacks 26 | . 26 . Successful 14 | . 14 . Failed 12 | . 12 . Catastrophic . | . . . Database Lockouts . | . . . Manual 1 | . 1 . Terminals 23 | . 23 . Fabricators . | . . . Repair Stations 3 | . 3 . Recycling Units . | . . . Scanalyzers . | . . . Garrison Access . | . . . Terminal Hacks 13 | . 13 . Record 5 | . 5 . Robot Analysis 1 | . 1 . Alert Level 1 | . 1 . Locate Traps 1 | . 1 . Reprogram Traps 1 | . 1 . Dispatch Records 1 | . 1 . Hauler Manifests 1 | . 1 . Registered Prototypes 1 | . 1 . Zone Layout 1 | . 1 . Fabricator Hacks . | . . . Repair Station Hacks 1 | . 1 . Scan Component 1 | . 1 . Recycling Unit Hacks . | . . . Scanalyzer . | . . . Garrison Access Hacks . | . . . Unauthorized Hacks . | . . . Terminals . | . . . Fabricators . | . . . Repair Stations . | . . . Recycling Units . | . . . Scanalyzers . | . . . Garrison Access . | . . . Data Cores Recovered . | . . . Used . | . . . Hacking Detections 8 | . 8 . Full Trace Events 6 | . 6 . Feedback Events . | . . . Feedback Blocked . | . . . Robot Schematics Acquired . | . . . Robots Built . | . . . Authchips . | . . . Time . | . . . Total Robot Build Rating . | . . . Part Schematics Acquired . | . . . Parts Built . | . . . Authchips . | . . . Time . | . . . Total Part Build Rating . | . . . Parts Repaired . | . . . Time . | . . . Parts Recycled . | . . . Recycled Matter . | . . . Retrieved Matter . | . . . Retrieved Components . | . . . Parts Scanalyzed . | . . . Part Schematics Acquired . | . . . Parts Damaged . | . . . Bothacking | -11 -10 -10 ------------ Run | Yrd Mat Min Used RIF Installer . | . . . Robots Hacked . | . . . Non-combat . | . . . Combat . | . . . Robot Hacks Applied . | . . . Relay Couplers Released . | . . . Fabnet Peak Effective % . | . . . Robots Rewired . | . . . Allies Hacked . | . . . Hacks Repelled . | . . . Allies | -11 -10 -10 -------- Run | Yrd Mat Min Total Allies 1 | . . 1 Largest Group 1 | . . 1 Highest-Rated Group 31 | . . 31 Highest-Rated Ally 31 | . . 31 Total Orders . | . . . Ally Attacks 1 | . . 1 Total Damage 22 | . . 22 Kills . | . . . Allies Corrupted . | . . . Allies Melted . | . . . Intel | -11 -10 -10 ------- Run | Yrd Mat Min Robot Analysis Total 1 | . 1 . Derelict Logs Recovered . | . . . Drone Launches . | . . . Drone Recoveries . | . . . Exploration | -11 -10 -10 ------------- Run | Yrd Mat Min Turns Passed 1017 | 93 732 192 Spaces Moved 875 | 90 695 90 Core 23 | 23 . . Treads . | . . . Legs 170 | . 80 90 Wheels 682 | 67 615 . Hover . | . . . Flight . | . . . Fastest Speed 50 | 50 80 190 Average Speed 104 | 72 96 191 Slowest Speed 260 | 80 190 260 Overloaded Moves . | . . . Propulsion Burnouts . | . . . Robots Hopped . | . . . Cave-ins Triggered . | . . . Exploration Rate (%) 40 | 9 85 27 Regions Visited 2 Branch Regions 1 Pre-discovered Areas . | . . . Known Exits Taken . | . . . Unknown Exits Taken 2 | 1 1 . Scrap Searched 2 | . . 2 Spaces Dug 19 | . 19 . Terrain Destroyed 148 | . 138 10 Melee . | . . . Projectile . | . . . AOE 148 | . 138 10 Terrain Rammed . | . . . Walls Destroyed . | . . . Machines Disabled . | . . . Actions | -11 -10 -10 --------- Run | Yrd Mat Min Total 940 | 112 726 102 Wait 6 | 6 . . Move 873 | 89 694 90 Hop . | . . . Pick Up 17 | 9 7 1 Fast Attach 1 | . 1 . Attach 12 | 5 3 4 Detach . | . . . Swap 3 | . 3 . Drop 1 | . 1 . Fire 27 | 3 17 7 Melee . | . . . Ram . | . . . Kick . | . . . Crush . | . . . Escape Stasis . | . . . Rewire . | . . . Trap . | . . . Miscellaneous . | . . . Route ------- -11/Scrapyard -10/Materials (discovered 4 exits: [*Mat x3] / [*Min]) -10/Mines (discovered 1 exit: [*Mat]) History --------- Turn | Location | Event 2 | -11/Scrapyard | Met Revision 17 58 | -11/Scrapyard | Discovered new exit (range 8) 94 | -11/Scrapyard | Entered Materials 203 | -10/Materials | Discovered new exit (range 9) 236 | -10/Materials | Discovered new exit (range 15) 240 | -10/Materials | Met 8R-AWN 260 | -10/Materials | Discovered new exit (range 11) 302 | -10/Materials | Build established: Mutant 314 | -10/Materials | Discovered new exit (range 9) 826 | -10/Materials | Entered Mines 828 | -10/Mines | Followed 8R-AWN into the Mines 829 | -10/Mines | Received a Mining Laser from a helpful Derelict 912 | -10/Mines | Discovered new exit (range 12) 1010 | -10/Mines | Core integrity fell below 50% 1017 | -10/Mines | Core integrity fell below 20% 1018 | -10/Mines | Destroyed by YI-UF0 with YI-UF0's Doublenader Last Messages --------------- K-01 Serf collects debris. RGF QI>NZK7U XXYGYIR5IW7ZQ#=T Grenade Launcher destroyed. Lgt. Ion Engine destroyed. System corrupted: Heat flow error (+201). YI-UF0 mumbles something. YI-UF0: "BOOSH!" JJ-QAB(g) destroyed. The unstable cave ceiling collapses. Grenade Launcher destroyed. The unstable cave ceiling collapses. Aluminum Leg destroyed. Grenade Launcher destroyed. R-06 Scavenger collects Wheel. The unstable cave ceiling collapses. Aluminum Leg destroyed. Datajack destroyed. The unstable cave ceiling collapses. YI-UF0 mumbles something. The unstable cave ceiling collapses. Map ----- +----------------------------------------------------+ | | | ?????????????????????????????????????????????????? | | ?????????????????????????????????????????????????? | | ?????????????????????????????????????????????????? | | ?????????????????????????????????????????????????? | | ?????????????????????????????????????????????????? | | ?????????????????????????????????????????????????? | | ?????????????????????????????????????????????????? | | ?????????????????????????????????????????????????? | | ?????????????????????????????????????????????????? | | ???????????????????????#?????????????????????????? | | ?????????????????????? ?????????????????????????? | | ?????????????????????## #???? #?????????????????? | | ?????????????????????# ##??? #?????????????????? | | ????????????????????### ### #?????????????????? | | ???????????????#???## # ##?###????????????? | | ???????????????# ??# # # ?????????????? | | ???????????????#$ ?# # ??????????????? | | ???????????????# ## ???????????????? | | ???????????????# # g ????????????????? | | ????????????#### ?????????????????? | | ??????????? ??????????????????? | | ????????????? ##??????????????????? | | ????????????????# #??????????????????? | | ????????????????# #??????????????????? | | ???????????????## @ #??????????????????? | | ???????????????# #??????????????????? | | ???????????????# # # #?????????????????? | | ???????????????????# #?????????###?????? | | ???????????????????# #?????????# ?????? | | ??????????????????# ##?????????# #?????? | | ??????????????????## # #??????????# #?????? | | ???????????????????## # ######?????# #?????? | | ????????????????????#### ## ##????# #?????? | | ???????????????????????## < ###### ######? | | ????????????????????????# /## | | ????????????????????####### # | | ????????????????????# ######### # | | ????????????????????# #####???????# ! # | | ????????????????????# ###### ##???######### # | | ????????????????????# ??????####????# | | ????????????????????????????????????# ####### | | ????????????????????????????????????# #?????# | | ????????????????????????????????????# #????## | | ????????????????????????????????????# #???## | | ??????????????????????????????????###!!#???# | | ?????????????????????????????????## = ##### | | ?????????????????????????????????# !!] | | ?????????????????????????????????# ###### | | | ????????????????????????????????## #????### | +----------------------------------------------------+ Best States ------------- Heat Dissipation 25 Energy Generation 10 Energy Capacity 125 Matter Stores 300 Matter Capacity 300 Sight Range 16 Terrain Scan Density 10 ECM Strength 1 Evasion (%) 50 Item Schematics ----------------- None Robot Schematics ------------------ None Fabricated ------------ Nothing Alien Tech Used ----------------- None Achievements -------------- Shopping List Challenges ------------ None Game ------ Seed NeutrinoArchitectGravjet Manual? 0 Play Time 00:17:46 Cumulative 1.2 hours Start 2024.03.31 @ 18:18:16 End 2024.03.31 @ 18:37:15 Sessions 1 Manual Loads 0 Difficulty Rogue Special Mode None Game No. 3 Rogue 3 Adventurer 0 Explorer 0 Win Type - Total 0 Types 0/0/0/0/0/0/0/0/0 Lore% 1 Gallery% 3 Achievement% 4 Wizard Run 0 Options --------- Layout 1 ASCII 0 Keyboard 0 Movement Mouse Keybinds 0 Fullscreen 1 Font 32/SmallcapsGlow Map View 50x35 Zoom Use 0% Tactical HUD 0 Map Filters NONE Filters NONE Steam 1 RUN: 26a20dc9-d36d-4da8-beaf-2a8a6ebb26af